[Event "FRA-ch Teams Top 16-Bas 2022"]
[Site "Chartres"]
[Date "2022.06.18"]
[Round "10.9"]
[White "Sochacki, Christophe"]
[Black "Kulaots, Kaido"]
[Result "0-1"]
[ECO "E11"]
[WhiteElo "2493"]
[BlackElo "2537"]
[Annotator "TA"]
[PlyCount "62"]
[EventDate "2022.06.16"]
[EventType "team-tourn"]
[EventCountry "FRA"]
[SourceTitle "playchess.com"]
[Source "ChessBase"]
[SourceQuality "1"]
[TimeControl "40/5400+30:1800+30"]

{[%evp 14,62,8,4,18,0,16,-14,-11,-24,-21,-20,0,-17,-10,-15,0,0,0,0,-4,0,21,6,41,43,43,43,89,16,68,51,68,22,31,6,2,-16,-23,-30,0,-8,-8,-8,-10,-37,-8,-733,-747,-654,-663]} 1. d4 {[%emt 0:00:03]} Nf6 {[%emt 0:00:19]} 2. c4 {[%emt 0:00:04]} e6 {[%emt 0:00:18]} 3. Nf3 {[%emt 0:00:04]} d5 {[%emt 0:00:31]} 4. g3 {[%emt 0:00:07]} Bb4+ {[%emt 0:01:43]} 5. Bd2 {[%emt 0:00:17]} Be7 {[%emt 0:00:11]} 6. Bg2 {[%emt 0:00:41]} O-O {[%emt 0:00:17]} 7. O-O {[%emt 0:00:46]} c6 {[%emt 0:00:34]} 8. b3 {[%emt 0:07:01]} b6 {[%emt 0:02:42] E11: Bogo-Indian.} 9. Bf4 {[%emt 0:02:41]} Nbd7 {[%emt 0:02:15] [#]} 10. Nbd2 $146 {[%emt 0:05:22][%cal Oe2e4]} ({Predecessor:} 10. Nc3 a5 11. Ne5 Bb7 12. e4 Bb4 13. exd5 cxd5 14. Nb5 Nxe5 15. dxe5 Ne4 16. Qe2 {1-0 (30) Kourkoulos Arditis,S (2500)-Bonte,A (2333) Mamaia 2021}) 10... Bb7 {[%emt 0:01:37] The position is equal.} 11. h4 {[%emt 0:07:11]} h6 {[%emt 0:03:16]} 12. e3 {[%emt 0:04:26]} a5 {[%emt 0:18:50][%cal Ba7a5,Ba5a4][%mdl 32]} 13. Qe2 {[%emt 0:01:08]} a4 {[%emt 0:02:19]} 14. Rfd1 {[%emt 0:00:43]} Ra7 {[%emt 0:00:46]} 15. Ne5 {[%emt 0:09:03]} Qa8 {[%emt 0:06:42]} 16. Rac1 {[%emt 0:01:43]} axb3 {[%emt 0:07:55]} 17. axb3 (17. Nxd7 {with more complications.} Nxd7 18. axb3 Ra2 19. cxd5 cxd5 20. Rc7) 17... Nxe5 18. dxe5 {[%emt 0:00:06]} Nh7 {[%emt 0:02:40]} 19. cxd5 {[%emt 0:00:20]} cxd5 {[%emt 0:02:34]} 20. e4 {[%emt 0:03:45]} Ra2 {[%emt 0:02:51] [#]} (20... dxe4 $14 21. Bxe4 Bxe4 22. Nxe4 (22. Qxe4 Rd8 $14) 22... Rb8) 21. Be3 {[%emt 0:04:47]} (21. Qg4 $1 $16 {Bxh6 is the strong threat.} Kh8 22. exd5 Bxd5 23. Bxd5 Qxd5 24. Nc4) 21... dxe4 {[%emt 0:17:20]} (21... Bc5 $11) 22. Qg4 $14 {[%emt 0:06:04] Hoping for Bxh6.} (22. Bxb6 Bd5 $11) 22... Kh8 {[%emt 0:00:29][%cal Oe7c5]} 23. Nc4 {[%emt 0:16:29]} (23. Nxe4 h5 24. Qf4 f5 25. exf6 Nxf6 $11) (23. Bxb6 e3 24. Bxb7 exf2+ 25. Bxf2 Qxb7 $11) (23. Rc7 $14 {was preferrable.} Bd5 24. Rxe7) 23... Bc5 $1 $11 {[%emt 0:16:18]} 24. Bxc5 {[%emt 0:01:11]} (24. Nxb6 Bxb6 25. Bxb6 e3 26. Bxb7 exf2+ 27. Bxf2 Qxb7 $11) 24... bxc5 {[%emt 0:00:03]} 25. Rd7 {[%emt 0:00:07]} Bd5 {[%emt 0:01:36]} 26. Nd6 {[%emt 0:03:54] Prevents Qe8.} Ra1 {[%emt 0:03:21]} (26... e3 $5 {[%cal Re3f2]} 27. Rxf7 (27. Nxf7+ $2 Rxf7 28. Rxf7 exf2+ 29. Rxf2 Rxf2 $19) 27... g5 28. Bxd5 Qxd5 $15) 27. Rxa1 {[%emt 0:00:47]} Qxa1+ {[%emt 0:00:05]} 28. Kh2 $132 {[%emt 0:00:02][%mdl 2048] [#] aiming for Qh5. White puts up resistance} Kg8 {[%emt 0:00:42]} 29. Bxe4 {[%emt 0:01:15]} (29. Qh5 $5 {[%cal Rd6f7]} g6 30. Qxh6 Qxe5 31. Nxf7 Rxf7 32. Rxf7 (32. Qxg6+ $2 Qg7 $19) 32... Kxf7 33. Qxh7+ Qg7 34. Qxg7+ Kxg7 35. Kg1 $11) 29... Qxe5 {[%emt 0:02:22] Threatens to win with ...Nf6.} (29... Qd4 $5 {[%cal Rd4f2]} 30. Kh3 Bxe4 31. Qxe4 Qxf2 $17) 30. Qe2 $2 {[%emt 0:06:08][%mdl 8192]} (30. Nxf7 $11 Qf6 31. Qg6 (31. Bxd5 $2 exd5 32. Nxh6+ Qxh6 $19) (31. Nd6 {leads to mate.} Qxf2+ 32. Kh3 Qf1+ 33. Kh2 Rf2+) 31... Qxg6 32. Bxg6) 30... Nf6 $19 {[%emt 0:00:32]} 31. f4 {[%emt 0:11:34]} Qd4 {[%emt 0:00:21] Weighted Error Value: White=0.40/Black=0.15 (very precise)} 0-1

[Event "FRA-ch Teams Top 16-Bas 2022"]
[Site "Chartres"]
[Date "2022.06.18"]
[Round "10.10"]
[White "Dionisi, Thomas"]
[Black "Dourerassou, Jonathan"]
[Result "0-1"]
[ECO "B62"]
[WhiteElo "2408"]
[BlackElo "2446"]
[Annotator "TA"]
[PlyCount "106"]
[EventDate "2022.06.16"]
[EventType "team-tourn"]
[EventCountry "FRA"]
[SourceTitle "playchess.com"]
[Source "ChessBase"]
[SourceQuality "1"]
[TimeControl "40/5400+30:1800+30"]

{[%evp 13,106,27,35,11,56,55,54,38,47,55,56,28,47,30,31,43,30,45,82,83,168,184,163,167,156,179,160,36,126,116,197,190,206,187,181,181,202,189,278,-322,-315,-315,-293,-385,-387,-1520,-1356,-1197,-1161,-1077,-1650,-1614,-1591,-1654,-1660,-1660,-1625,-1662,0,0,0,-1658,-611,-1656,-1635,-1615,-1614,-1614,-1377,-1546,-1431,-1318,-1286,-898,0,0,0,0,0,-410,-378,-924,-898,-1550,-1385,-1269,-1266,-1262,-1102,-960,-758,-29989,-29990,-29995,-29996]} 1. e4 {[%emt 0:00:07]} c5 {[%emt 0:00:07]} 2. Nf3 {[%emt 0:00:04]} d6 {[%emt 0:00:09]} 3. d4 {[%emt 0:00:08]} cxd4 {[%emt 0:00:08]} 4. Nxd4 {[%emt 0:00:02]} Nf6 {[%emt 0:00:07]} 5. Nc3 {[%emt 0:00:02]} Nc6 {[%emt 0:00:08]} 6. Bg5 {[%emt 0:00:32]} e6 {[%emt 0:00:08]} 7. Bb5 {[%emt 0:01:03]} Bd7 {[%emt 0:00:41]} 8. Qd3 {[%emt 0:00:25] is currently scoring better than 8.Bxc6. B62: Sicilian: Richter-Rauzer: 6...e6: Unusual White 7th moves.} a6 {[%emt 0:09:32]} 9. Bxc6 {[%emt 0:00:07]} bxc6 {[%emt 0:00:42]} 10. O-O-O {[%emt 0:01:06] White is slightly better.} h6 {[%emt 0:07:38]} 11. Bh4 {[%emt 0:00:45][%cal Oe4e5]} Be7 {[%emt 0:00:15]} 12. Nb3 {[%emt 0:02:37][%cal Bd4b3,Bb3d2,Bd2c4][%mdl 32]} a5 {[%emt 0:03:52] [#]} 13. a4 $146 {[%emt 0:04:31]} ({Predecessor:} 13. f4 a4 14. Nd4 a3 15. b3 d5 16. e5 Nh7 17. Bxe7 Qxe7 18. Kb1 O-O 19. Nf3 {0-1 (37) Ibadov,D (2282)-Savitskiy,S (2427) Moscow 2021}) 13... e5 {[%emt 0:00:52]} 14. Bxf6 {[%emt 0:08:15]} gxf6 {[%emt 0:02:40]} 15. Nd2 {[%emt 0:00:44]} Qc7 {[%emt 0:13:10]} 16. Nc4 {[%emt 0:02:41][%cal Rc4d6]} Rd8 {[%emt 0:00:08]} (16... Rg8 $16) 17. Nxd6+ $18 {[%emt 0:07:35]} Kf8 {[%emt 0:00:24] [#]} 18. Qf3 $1 {[%emt 0:00:46]} Be6 {[%emt 0:08:38]} (18... Bxd6 $2 19. Qxf6 Bg4 20. Qxh8+ $18) 19. Nf5 {[%emt 0:00:38] Pair of Knights!} Rb8 {[%emt 0:00:05]} 20. Qg3 {[%emt 0:33:23]} (20. b3 $16) 20... Bxf5 {[%emt 0:09:43]} ({Black should try} 20... Rg8 $1 $14 21. Qe3 Qb7 22. Nxe7 (22. Qxh6+ Ke8 $11) 22... Qxb2+ 23. Kd2 Rd8+ 24. Ke1 Rxd1+ 25. Nxd1 (25. Kxd1 Kxe7 26. Qc5+ Ke8 $15) 25... Qb4+ 26. c3 Qxe7) 21. exf5 $16 {[%emt 0:00:02]} Qb6 {[%emt 0:00:04]} (21... Rb4 $16) 22. b3 $18 {[%emt 0:00:48]} ({Stronger than} 22. Rd7 Qxb2+ 23. Kd2 Bb4 $19) 22... Qb4 {[%emt 0:00:52]} 23. Rd7 {[%emt 0:08:27]} Rg8 {[%emt 0:19:27][%cal Bh8g8,Bg8g4,Bg4c4][%mdl 32]} 24. Qf3 {[%emt 0:00:15]} Rg4 {[%emt 0:08:35]} 25. Qxc6 {[%emt 0:08:02]} Qa3+ {[%emt 0:03:30]} (25... Rd4 {might work better.} 26. Rd1 Rxd1+ 27. Kxd1 Kg7) 26. Kb1 $4 {[%emt 0:13:34][%mdl 8192] [#]} (26. Kd2 $1 $18 {is the narrow road to win.}) 26... Rxb3+ $1 $19 {[%emt 0:01:18][%mdl 576] Demolition} 27. cxb3 {[%emt 0:00:02]} Qxb3+ {[%emt 0:00:04]} 28. Ka1 {[%emt 0:04:17]} Rc4 $1 {[%emt 0:00:13] Chess con chili.} 29. Qa8+ $2 {[%emt 0:03:26]} (29. Qxc4 Qxc4 30. Kb2 (30. Rc1 $2 Ba3 $19)) 29... Kg7 {[%emt 0:00:01]} 30. Rc1 {[%emt 0:00:31]} Rxc3 {[%emt 0:04:15]} 31. Rxc3 {[%emt 0:00:02]} Qxc3+ {[%emt 0:00:06][%mdl 4096] Endgame KQR-KQB} 32. Kb1 {[%emt 0:00:04]} Qb3+ {[%emt 0:00:20]} 33. Kc1 {[%emt 0:00:01]} Ba3+ {[%emt 0:00:09]} 34. Kd2 {[%emt 0:00:01]} Bb4+ {[%emt 0:00:10]} 35. Kc1 {[%emt 0:02:15]} Qa3+ {[%emt 0:00:30]} 36. Kb1 {[%emt 0:00:11] Black must now prevent Qd5.} Qb3+ {[%emt 0:00:11]} 37. Kc1 {[%emt 0:00:02]} Qc4+ {[%emt 0:01:57]} 38. Kb1 {[%emt 0:01:02]} Qf1+ {[%emt 0:00:17]} 39. Ka2 {[%emt 0:00:53]} Qxf2+ {[%emt 0:00:13]} 40. Kb3 {[%emt 0:00:20]} Qe3+ {[%emt 0:00:28]} 41. Kc2 {[%emt 0:09:56]} Qc3+ {[%emt 0:03:44]} 42. Kb1 {[%emt 0:00:41]} Qb3+ {[%emt 0:07:34]} 43. Kc1 {[%emt 0:00:00]} Ba3+ $2 {[%emt 0:00:49]} (43... Bc5 $1 $19 {[%cal Rc5e3] Threatens to win with ...Be3+.} 44. Qc6 Be3+ 45. Rd2 Qd3) 44. Kd2 $11 {[%emt 0:00:03]} Qb4+ {[%emt 0:01:38]} 45. Kd3 {[%emt 0:08:00] Qb7 is the strong threat.} Qb1+ {[%emt 0:01:16]} 46. Ke2 $2 {[%emt 0:01:11][%mdl 8192] [#]} (46. Kc4 $11 {and White stays safe.}) 46... Qc2+ $1 $19 {[%emt 0:00:24]} 47. Rd2 $2 {[%emt 0:00:16]} (47. Kf1 Qc4+ 48. Kf2 Bc5+ 49. Ke1 Bb4+ 50. Kd1 Qb3+ 51. Kc1) 47... Qc4+ {[%emt 0:00:05]} 48. Kf3 {[%emt 0:04:52] [#]} Qf1+ $1 {[%emt 0:00:26][%mdl 64] Skewer} ({And not} 48... Bb4 49. Rd8 Qf4+ 50. Ke2 Qc4+ 51. Kf3 Qf4+ 52. Ke2 Qc4+ 53. Kf3 $11) 49. Rf2 {[%emt 0:04:01]} Qd3+ {[%emt 0:00:39]} 50. Kg4 {[%emt 0:00:01]} Qd4+ {[%emt 0:00:45]} 51. Kg3 {[%emt 0:03:55]} e4 {[%emt 0:02:03] aiming for ...h5.} 52. Re2 {[%emt 0:01:16]} Qe5+ {[%emt 0:01:59][%mdl 64] Skewer} 53. Kg4 {[%emt 0:02:21]} h5+ $1 {[%emt 0:00:24] Weighted Error Value: White=1.11/Black=0.33} 0-1

[Event "FRA-ch Teams Top 16-Bas 2022"]
[Site "Chartres"]
[Date "2022.06.18"]
[Round "10.12"]
[White "Chabanon, Jean-Luc"]
[Black "Da Silva, Quentin"]
[Result "1-0"]
[ECO "E94"]
[WhiteElo "2432"]
[BlackElo "2171"]
[Annotator "TA"]
[PlyCount "135"]
[EventDate "2022.06.16"]
[EventType "team-tourn"]
[EventCountry "FRA"]
[SourceTitle "playchess.com"]
[Source "ChessBase"]
[SourceQuality "1"]
[TimeControl "40/5400+30:1800+30"]

{[%evp 20,135,79,76,88,86,97,92,99,45,45,45,45,45,45,42,58,47,127,122,166,156,168,160,168,167,189,180,199,199,198,172,172,172,199,199,199,199,199,199,199,159,199,158,158,158,158,158,158,158,158,158,158,158,158,158,158,158,158,158,158,158,158,158,158,158,158,158,158,158,158,158,158,158,158,133,121,95,239,233,219,22,21,68,283,279,910,886,839,790,1695,1604,1554,1556,1272,1037,1422,1296,3298,2613,29976,29977,29977,29978,29978,29979,29979,29980,29980,29981,29981,29982,29987,29988,29990,29989,29989,29990]} 1. d4 {[%emt 0:00:03]} Nf6 {[%emt 0:00:18]} 2. Nf3 {[%emt 0:00:16]} g6 {[%emt 0:00:20]} 3. c4 {[%emt 0:00:12]} Bg7 {[%emt 0:00:07]} 4. Nc3 {[%emt 0:00:09]} d6 {[%emt 0:00:22]} 5. e4 {[%emt 0:04:13]} O-O {[%emt 0:00:13]} 6. Be2 {[%emt 0:00:13]} Nbd7 {[%emt 0:02:36]} 7. O-O {[%emt 0:01:04]} e5 {[%emt 0:01:12]} 8. Be3 {[%emt 0:00:30]} c6 {[%emt 0:02:55]} 9. d5 {[%emt 0:06:35]} c5 {[%emt 0:01:33]} 10. Ne1 {[%emt 0:00:18]} Ne8 {[%emt 0:01:23]} 11. g4 {[%emt 0:00:06]} Nc7 {[%emt 0:16:32] E94: King's Indian: Classical: 6 Be2 e5 7 0-0: Various Black 7th moves.} 12. Kh1 {[%emt 0:01:37]} a6 {[%emt 0:01:59][%cal Ob7b5]} 13. Rg1 {[%emt 0:03:53]} Rb8 {[%emt 0:12:11] [#] White is better.} 14. a3 $146 {[%emt 0:10:50]} ({White should play} 14. a4 $1 $16) ({Predecessor:} 14. a4 a5 15. Qd2 b6 16. Rg3 Kh8 17. Ng2 Bf6 18. g5 Bg7 19. h4 f5 20. exf5 gxf5 {1-0 (43) Janjgava,L (2495)-Sichinava,R (2445) Tbilisi 1996}) 14... b5 $14 {[%emt 0:02:07]} 15. b3 {[%emt 0:04:41]} Nb6 {[%emt 0:07:08]} 16. Nf3 {[%emt 0:10:42]} Bd7 {[%emt 0:02:14]} 17. Bg5 {[%emt 0:12:33]} f6 {[%emt 0:07:28]} 18. Bd2 {[%emt 0:00:11]} g5 {[%emt 0:02:13]} ({Black should try} 18... Rf7 $14) 19. Ne1 $16 {[%emt 0:00:44][%cal Bf3e1,Be1g2,Bg2e3][%mdl 32]} Nc8 {[%emt 0:03:45]} 20. h4 $1 {[%emt 0:07:05][%cal Bh2h4,Bh4h5][%mdl 32]} h6 {[%emt 0:03:20]} ({Not} 20... gxh4 21. Nf3 $16) 21. Ng2 {[%emt 0:02:18]} Ne7 {[%emt 0:00:24] [#]} 22. h5 $1 {[%emt 0:01:13] Against Ng6} bxc4 {[%emt 0:03:11]} 23. bxc4 {[%emt 0:01:32]} ({But not} 23. Bxc4 $6 Nb5 $16) 23... Rb6 {[%emt 0:01:27]} 24. Ne3 {[%emt 0:03:33]} Qa8 {[%emt 0:01:32]} 25. Qc2 {[%emt 0:00:56]} Rfb8 {[%emt 0:00:42]} 26. Rgb1 {[%emt 0:00:44]} R8b7 {[%emt 0:01:42]} 27. Rxb6 {[%emt 0:01:39]} Rxb6 {[%emt 0:00:03]} 28. Rb1 {[%emt 0:00:08]} Qb7 {[%emt 0:02:34]} 29. Rxb6 {[%emt 0:00:37]} Qxb6 {[%emt 0:00:05]} 30. Qb1 {[%emt 0:00:34]} Na8 {[%emt 0:02:31]} 31. Qxb6 {[%emt 0:04:27]} Nxb6 {[%emt 0:00:11]} 32. Bd1 {[%emt 0:00:13]} Kf7 {[%emt 0:03:22]} 33. a4 {[%emt 0:02:20][%cal Ba3a4,Ba4a5][%mdl 32]} Ke8 {[%emt 0:02:09]} 34. a5 {[%emt 0:03:49]} Na8 {[%emt 0:08:32]} 35. Ba4 {[%emt 0:00:23]} Bxa4 {[%emt 0:02:35]} 36. Nxa4 {[%emt 0:00:07]} Nc8 {[%emt 0:00:23]} 37. Kg2 {[%emt 0:02:00]} Kd7 {[%emt 0:02:08]} 38. Kf3 {[%emt 0:00:14]} Kc7 {[%emt 0:01:04]} 39. Ke2 {[%emt 0:00:19]} Bf8 {[%emt 0:01:03]} 40. Kd3 {[%emt 0:00:16]} Kb7 {[%emt 0:02:08]} 41. Nf5 {[%emt 0:37:42]} Nc7 {[%emt 0:06:53]} 42. Be3 {[%emt 0:00:00]} Ne8 {[%emt 0:02:24]} 43. f3 {[%emt 0:00:00]} Kb8 {[%emt 0:05:25]} 44. Bf2 {[%emt 0:00:00]} Kb7 {[%emt 0:00:27]} 45. Kc3 {[%emt 0:00:00] 0x0.00207be8323edp-1022s more active pieces. The black rooks are badly placed.} Kb8 {[%emt 0:02:29]} 46. Kb3 {[%emt 0:00:00]} Kb7 {[%emt 0:00:19]} 47. Nxd6+ {[%emt 0:00:00]} Bxd6 {[%emt 0:00:40]} 48. Bxc5 {[%emt 0:00:00]} ({Reject} 48. Nxc5+ $6 Bxc5 49. Bxc5 Ncd6 $11) 48... Bxc5 {[%emt 0:03:11]} (48... Kc7 $16) 49. Nxc5+ $18 {[%emt 0:00:00]} Ka7 {[%emt 0:00:12]} 50. Kb4 $2 {[%emt 0:00:37]} (50. Ne6 $18) 50... Ncd6 $11 {[%emt 0:01:04]} 51. Ne6 {[%emt 0:02:43][%mdl 1024] c5 is the strong threat. White has compensation.} Kb7 $2 {[%emt 0:03:56] White leaves nothing to chance now.} (51... Nf7 $14) 52. c5 $18 {[%emt 0:00:50]} Nb5 {[%emt 0:01:40] [#]} (52... Nf7 53. c6+ Kc8) 53. Nd8+ $1 {[%emt 0:00:14]} Kc7 {[%emt 0:02:10]} 54. Nf7 {[%emt 0:00:05]} Nd4 {[%emt 0:03:16]} 55. Nxh6 {[%emt 0:00:40] White wants to mate with Nf5.} f5 {[%emt 0:00:32]} 56. gxf5 {[%emt 0:01:43] Hoping for Ng4.} Nf6 {[%emt 0:02:45]} 57. Ng4 {[%emt 0:02:03]} Nxh5 {[%emt 0:00:27]} 58. d6+ {[%emt 0:00:52]} Kb7 {[%emt 0:01:57]} 59. Nxe5 {[%emt 0:01:21] Kc4 would kill now.} Nc6+ {[%emt 0:00:20]} 60. Nxc6 {[%emt 0:00:06] White mates.} Kxc6 {[%emt 0:00:03] KN-KP} 61. e5 {[%emt 0:00:18][%cal Be4e5,Be5e6,Be6e7][%mdl 32]} Ng7 {[%emt 0:01:21]} 62. e6 {[%emt 0:02:30]} Nxf5 {[%emt 0:00:36]} 63. e7 {[%emt 0:00:24]} Ng7 {[%emt 0:00:15]} 64. Kc4 {[%emt 0:00:24]} Ne8 {[%emt 0:00:28]} 65. Kd4 {[%emt 0:00:13]} Ng7 {[%emt 0:01:39]} 66. Ke5 {[%emt 0:00:20]} Kd7 {[%emt 0:00:45]} 67. Kf6 {[%emt 0:00:36]} Ne8+ {[%emt 0:00:25]} 68. Kf7 {[%emt 0:07:32] Weighted Error Value: White=0.14 (very precise) /Black=0.39} 1-0

[Event "FRA-ch Teams Top 16-Bas 2022"]
[Site "Chartres"]
[Date "2022.06.18"]
[Round "10.13"]
[White "Saatdjian, Thomas"]
[Black "Godart, Francois"]
[Result "1-0"]
[ECO "E11"]
[WhiteElo "2271"]
[BlackElo "2399"]
[Annotator "TA"]
[PlyCount "159"]
[EventDate "2022.06.16"]
[EventType "team-tourn"]
[EventCountry "FRA"]
[SourceTitle "playchess.com"]
[Source "ChessBase"]
[SourceQuality "1"]
[TimeControl "40/5400+30:1800+30"]

{[%evp 16,159,10,6,7,0,23,27,29,13,41,17,39,37,39,36,24,34,31,32,32,26,61,61,61,58,67,58,59,62,63,38,39,57,60,52,56,26,21,20,43,34,34,31,31,31,42,8,20,8,8,8,8,9,187,189,193,200,188,188,180,189,289,293,372,373,376,368,362,371,378,301,376,317,294,345,277,302,252,241,140,0,236,156,285,259,178,19,19,27,27,0,27,27,60,68,1016,1062,1057,723,345,15,560,8,1109,1064,1075,810,518,397,1093,346,1615,708,6598,3233,29981,29982,29982,1281,29978,29979,29978,29978,29983,29984,29984,29967,29982,29983,29980,29980,29980,29981,29981,29982,29982,29983,29983,29984,29984,29985,29985,29986,29988,29987]} 1. d4 {[%emt 0:00:04]} d5 {[%emt 0:00:07]} 2. Nf3 {[%emt 0:00:07]} Nf6 {[%emt 0:00:31]} 3. c4 {[%emt 0:00:09]} e6 {[%emt 0:00:17]} 4. g3 {[%emt 0:00:34]} Bb4+ {[%emt 0:00:17]} 5. Bd2 {[%emt 0:00:06]} Be7 {[%emt 0:00:06]} 6. Bg2 {[%emt 0:00:08]} O-O {[%emt 0:00:09]} 7. O-O {[%emt 0:00:06]} c6 {[%emt 0:00:15]} 8. Qc2 {[%emt 0:04:08]} Nbd7 {[%emt 0:00:40]} 9. Bf4 {[%emt 0:07:39]} b6 {[%emt 0:00:50] E11: Bogo-Indian.} 10. Nc3 {[%emt 0:00:12] Recently 10.Nbd2 got a lot of attention.} Ba6 {[%emt 0:18:38]} 11. cxd5 {[%emt 0:09:58]} cxd5 {[%emt 0:06:37] White has an edge.} 12. Rfc1 {[%emt 0:02:18] has lost popularity (12.Qa4).} Nh5 {[%emt 0:03:43]} 13. Bd2 {[%emt 0:33:46]} (13. Qa4 $5 {[%cal Ra4a6]} Nxf4 14. Qxa6 Nxg2 15. Kxg2 $11) 13... Bb7 {[%emt 0:11:28] [#]} 14. Nb5 $146 {[%emt 0:14:21][%cal Bc3b5,Bb5a7,Ba7c6,Bc6e5][%mdl 32]} ({Predecessor:} 14. a4 a6 15. Ne5 Nhf6 16. Bf4 Rc8 17. Nxd7 Nxd7 18. Qd3 Nb8 19. e4 Nc6 20. exd5 {½-½ (64) Gilevich,A (2403)-D'Costa,L (2402) Cannes 2019}) 14... Rc8 {[%emt 0:13:17] Inhibits Qc7.} 15. Qa4 {[%emt 0:00:06]} Rxc1+ {[%emt 0:08:16]} 16. Rxc1 {[%emt 0:00:03]} a6 {[%emt 0:00:08]} 17. Na7 {[%emt 0:05:51]} b5 {[%emt 0:03:54]} 18. Qa5 {[%emt 0:05:24]} Bd6 {[%emt 0:01:36] Inhibits Qc7.} 19. Nc6 {[%emt 0:03:56]} Qa8 {[%emt 0:02:08]} 20. Nce5 {[%emt 0:07:35]} Nhf6 {[%emt 0:05:53]} 21. Bb4 {[%emt 0:00:05] White is much more active.} Bxb4 {[%emt 0:00:38]} 22. Qxb4 {[%emt 0:00:01] aiming for Rc7.} Rc8 {[%emt 0:00:11] Inhibits Rc7.} 23. Rc3 {[%emt 0:00:03]} Rxc3 {[%emt 0:04:10]} 24. Qxc3 {[%emt 0:00:05]} Qc8 {[%emt 0:02:23]} 25. Nxd7 {[%emt 0:02:59]} (25. Qb4 {with more complications.} h6 26. e3 Qf8 27. a3) 25... Nxd7 {[%emt 0:00:41]} 26. Qxc8+ {[%emt 0:01:26]} (26. Qa3 {is more complex.} Nf6 27. Qd6 Ne4 28. Qe7) 26... Bxc8 $14 {[%emt 0:00:04][%mdl 4096] Endgame KBN-KBN} 27. b4 {[%emt 0:01:40]} Kf8 {[%emt 0:01:33]} 28. Kf1 {[%emt 0:00:34]} Ke7 {[%emt 0:01:59]} 29. Ke1 {[%emt 0:00:07]} f6 {[%emt 0:00:23]} 30. Kd2 {[%emt 0:00:16]} Kd6 {[%emt 0:02:14]} 31. e3 {[%emt 0:00:08]} e5 {[%emt 0:02:19]} 32. Ne1 {[%emt 0:01:09]} Nb6 {[%emt 0:02:15]} 33. Nd3 {[%emt 0:00:05]} exd4 {[%emt 0:03:47]} 34. exd4 {[%emt 0:00:02]} a5 $2 {[%emt 0:00:11]} (34... Bf5 $11 {and Black has nothing to worry.}) 35. bxa5 $18 {[%emt 0:00:53]} Nc4+ {[%emt 0:00:05]} 36. Kc3 {[%emt 0:00:02]} Nxa5 {[%emt 0:00:04]} 37. Nf4 {[%emt 0:00:03]} Nc6 {[%emt 0:03:58]} 38. a3 {[%emt 0:02:13] Prevents b4+.} ({Much less strong is} 38. Bxd5 b4+ 39. Kb3 Nxd4+ 40. Kc4 (40. Kxb4 g5 $15) 40... Nf5 $16) (38. Nxd5 $6 Be6 39. Nb4 Nxb4 40. Kxb4 Bxa2 $16) 38... Ne7 {[%emt 0:01:45]} (38... Bg4 $142 39. Nxd5 Bd7) 39. Nh5 $1 {[%emt 0:00:01]} Nf5 {[%emt 0:00:42]} 40. Bh3 {[%emt 0:00:01]} Nxg3 {[%emt 0:00:43]} 41. hxg3 {[%emt 0:30:02]} Bxh3 {[%emt 0:30:08]} 42. Nxg7 {[%emt 0:00:03] KB-KN} Bf1 {[%emt 0:00:00]} 43. Nh5 {[%emt 0:00:00]} f5 {[%emt 0:00:00]} 44. Kb4 {[%emt 0:00:00]} Be2 {[%emt 0:00:00]} 45. Nf4 {[%emt 0:00:00]} Bf1 {[%emt 0:00:00]} 46. Ka5 {[%emt 0:00:00]} Kc6 {[%emt 0:00:00]} 47. Nh5 $1 {[%emt 0:00:00]} Bd3 {[%emt 0:00:00]} 48. Nf4 {[%emt 0:00:00] Against Be2} (48. Kb4 $1 $16) 48... Bf1 $1 {[%emt 0:00:00]} 49. Ne6 $1 {[%emt 0:00:00] Strongly threatening Ng5.} Kd6 {[%emt 0:00:00]} (49... Bd3 $16 50. Kb4 Be4) 50. Ng7 {[%emt 0:00:00]} f4 {[%emt 0:00:00]} 51. gxf4 {[%emt 0:00:00]} (51. Kb6 $1 $18) 51... Bd3 $11 {[%emt 0:00:00]} 52. Kb6 {[%emt 0:00:00] f5 is the strong threat.} Ke7 $1 {[%emt 0:00:00]} 53. Kc5 {[%emt 0:00:00]} (53. Nh5 $5 {[%cal Rf4f5]}) 53... Kf7 {[%emt 0:00:00]} (53... Bg6 $5 {[%cal Re7f6]} 54. Kxb5 (54. Kxd5 $2 Kf6 $19) 54... Kf6 $11) 54. Nh5 {[%emt 0:00:00]} Kg6 {[%emt 0:00:00]} 55. Ng3 {[%emt 0:00:00]} h5 $2 {[%emt 0:00:18][%mdl 8192] White leaves nothing to chance now.} (55... Bc4 $14) 56. Kxd5 {[%emt 0:00:00]} h4 {[%emt 0:00:34]} 57. Kc5 {[%emt 0:00:00]} Kf7 {[%emt 0:06:13] [#]} 58. d5 $2 {[%emt 0:00:00]} Ke8 {[%emt 0:00:47][%mdl 8192] [#]} (58... Ke7 $11) 59. Kd4 $2 {[%emt 0:04:22]} ({Only move:} 59. Kd6 $1 $18 Kd8 {[#]} (59... Kf7 60. Kc7) 60. Ke6 $1) 59... Bb1 $2 {[%emt 0:01:28][%mdl 8192]} (59... hxg3 $11 60. fxg3 (60. Kxd3 $2 g2 $19) 60... Be2) 60. Nf1 $18 {[%emt 0:02:28]} h3 {[%emt 0:00:40]} 61. Ke5 {[%emt 0:00:05]} Bd3 {[%emt 0:00:51]} 62. Nh2 {[%emt 0:00:01]} Bh7 $2 {[%emt 0:01:00]} (62... Ke7 63. f5 Be2 64. f6+ Kd7) 63. Kd6 $2 {[%emt 0:01:02]} (63. Ke6 {And now Ng4 would win.} Bg8+ 64. Kd6) 63... Bd3 $2 {[%emt 0:00:10]} (63... Kd8 64. Ke5 Bc2) 64. Ke6 {[%emt 0:01:31]} (64. Kc7 $142 Bh7 65. d6) 64... Bc4 {[%emt 0:00:14]} 65. f5 {[%emt 0:00:06] Threatening mate with f6.} Ba2 {[%emt 0:00:08]} 66. f6 {[%emt 0:00:52]} Kf8 {[%emt 0:00:03]} 67. Ke5 {[%emt 0:00:11]} (67. f7 $142 Bc4 68. f4 Bb3 69. Nf3 h2 70. Nxh2 b4 71. axb4 Bxd5+ 72. Kxd5) 67... Kf7 {[%emt 0:00:13]} 68. f4 {[%emt 0:01:25] White mates.} Bb3 {[%emt 0:01:12]} 69. Nf3 {[%emt 0:00:51]} Kf8 {[%emt 0:00:38]} 70. Ke6 {[%emt 0:01:55]} Bc4 {[%emt 0:00:47]} 71. Nh2 {[%emt 0:02:07]} Bb3 {[%emt 0:00:23]} 72. Ng4 {[%emt 0:00:17]} Bc4 {[%emt 0:00:18]} 73. Ne5 {[%emt 0:00:18]} Bxd5+ {[%emt 0:00:28]} 74. Kxd5 {[%emt 0:00:02] KN-KPP} h2 {[%emt 0:00:06]} 75. Ke6 {[%emt 0:00:01]} h1=Q {[%emt 0:00:17]} 76. Nd7+ {[%emt 0:00:04]} Kg8 {[%emt 0:00:12]} 77. f7+ {[%emt 0:00:01]} Kh7 {[%emt 0:00:06]} 78. f8=Q {[%emt 0:00:04]} Qc6+ {[%emt 0:01:34]} 79. Qd6 {[%emt 0:00:32]} Qe4+ {[%emt 0:00:22]} 80. Kf7 {[%emt 0:00:20] Weighted Error Value: White=0.41/Black=0.31} 1-0